lending/lending_fUSD_20250508
["ID","MTS","AMOUNT","RATE_DAILY","PERIOD"]
[360254346,1746665442980,-450.0,0.00019999,2]
[360254347,1746665442989,-450.0,0.00019999,2]
[360254348,1746665442999,-450.0,0.00019999,2]
[360254350,1746665443008,-450.0,0.00019999,2]
[360254352,1746665443017,-450.0,0.00019999,2]
[360254354,1746665443027,-450.0,0.00019999,2]
[360254356,1746665443036,-450.0,0.00019999,2]
[360254358,1746665443046,-450.0,0.00019999,2]
[360254360,1746665443056,-450.0,0.00019999,2]
[360254362,1746665443065,-450.0,0.00019999,2]
[360254364,1746665443074,-450.0,0.00019999,2]
[360254366,1746665443084,-450.0,0.00019999,2]
[360254368,1746665443093,-450.0,0.00019999,2]
[360254370,1746665443104,-450.0,0.00019999,2]
[360254372,1746665443114,-514.24,0.00019999,2]
[360254374,1746665443123,-450.0,0.00019999,2]
[360254376,1746665443132,-593.4,0.00019999,2]
[360254378,1746665443143,-450.0,0.00019999,2]
[360254380,1746665443152,-150.79,0.00019999,2]
[360254381,1746665443162,-151.0,0.00019999,2]
[360254382,1746665443171,-151.0,0.00019999,2]
[360254384,1746665443180,-3400.28,0.00019999,2]
[360254386,1746665443190,-3400.28,0.00019999,2]
[360254388,1746665443199,-151.0,0.00019999,2]
[360254390,1746665443209,-3400.28,0.00019999,2]
[360254392,1746665443219,-151.0,0.00019999,2]
[360254394,1746665443229,-3400.28,0.00019999,2]
[360254396,1746665443242,-3400.28,0.00019999,2]
[360254398,1746665443251,-3400.28,0.00019999,2]
[360254400,1746665443261,-3400.28,0.00019999,2]
[360254402,1746665443270,-3400.28,0.00019999,2]
[360254404,1746665443279,-181.74084,0.00019999,2]
[360254406,1746665443288,-3400.28,0.00019999,2]
[360254408,1746665443298,-450.0,0.00019999,2]
[360254410,1746665443307,-3400.28,0.00019999,2]
[360254411,1746665443316,-450.0,0.00019999,2]
[360254413,1746665443326,-3400.28,0.00019999,2]
[360254415,1746665443337,-450.0,0.00019999,2]
[360254417,1746665443346,-450.0,0.00019999,2]
[360254419,1746665443356,-3400.28,0.00019999,2]
[360254421,1746665443365,-450.0,0.00019999,2]
[360254423,1746665443375,-3400.28,0.00019999,2]
[360254425,1746665443384,-450.0,0.00019999,2]
[360254427,1746665443393,-3400.28,0.00019999,2]
[360254429,1746665443403,-450.0,0.00019999,2]
[360254431,1746665443413,-3400.28,0.00019999,2]
[360254433,1746665443422,-450.0,0.00019999,2]
[360254435,1746665443431,-3400.28,0.00019999,2]
[360254437,1746665443440,-450.0,0.00019999,2]
[360254439,1746665443449,-3400.28,0.00019999,2]
[360254441,1746665443459,-560.28,0.00019999,2]
[360254443,1746665443468,-3400.28,0.00019999,2]
[360254444,1746665443477,-3400.28,0.00019999,2]
[360254446,1746665443487,-3400.28,0.00019999,2]
[360254448,1746665443496,-3400.46,0.00019999,2]
[360254450,1746665443506,-450.0,0.00019999,2]
[360254452,1746665443519,-450.0,0.00019999,2]
[360254454,1746665443528,-450.0,0.00019999,2]
[360254456,1746665443538,-364.74,0.00019999,2]
[360254458,1746665443547,-200.0,0.00019999,2]
[360254460,1746665443557,-450.0,0.00019999,2]
[360254462,1746665443566,-450.0,0.00019999,2]
[360254464,1746665443575,-450.0,0.00019999,2]
[360254466,1746665443585,-450.0,0.00019999,2]
[360254468,1746665443594,-249.73,0.00019999,2]
[360254470,1746665443610,-515.99,0.00019999,2]
[360254471,1746665443619,-515.99,0.00019999,2]
[360254473,1746665443630,-515.99,0.00019999,2]
[360254474,1746665443640,-515.99,0.00019999,2]
[360254475,1746665443702,-515.99,0.00019999,2]
[360254476,1746665443711,-515.99,0.00019999,2]
[360254477,1746665443720,-515.99,0.00019999,2]
[360254478,1746665443733,-515.99,0.00019999,2]
[360254479,1746665443742,-515.99,0.00019999,2]
[360254480,1746665443751,-515.99,0.00019999,2]
[360254481,1746665443760,-515.99,0.00019999,2]
[360254482,1746665443770,-515.99,0.00019999,2]
[360254483,1746665443782,-515.99,0.00019999,2]
[360254484,1746665443791,-515.99,0.00019999,2]
[360254485,1746665443800,-515.99,0.00019999,2]
[360254486,1746665443811,-515.99,0.00019999,2]
[360254487,1746665443820,-515.99,0.00019999,2]
[360254488,1746665443829,-515.99,0.00019999,2]
[360254489,1746665443839,-515.99,0.00019999,2]
[360254490,1746665443848,-515.99,0.00019999,2]
[360254491,1746665443857,-516.11,0.00019999,2]
[360254492,1746665443867,-399.05,0.00019999,2]
[360254493,1746665443877,-450.0,0.00019999,2]
[360254494,1746665443886,-544.28,0.00019999,2]
[360254495,1746665443897,-450.0,0.00019999,2]
[360254496,1746665443906,-450.0,0.00019999,2]
[360254497,1746665443916,-450.0,0.00019999,2]
[360254498,1746665443927,-450.0,0.00019999,2]
[360254499,1746665443937,-261.04,0.00019999,2]
[360254500,1746665443946,-450.0,0.00019999,2]
[360254501,1746665443956,-450.0,0.00019999,2]
[360254502,1746665443965,-450.0,0.00019999,2]
[360254503,1746665443975,-450.0,0.00019999,2]
[360254504,1746665443984,-450.0,0.00019999,2]
[360254505,1746665443995,-450.0,0.00019999,2]
[360254506,1746665444006,-450.0,0.00019999,2]
[360254507,1746665444016,-450.0,0.00019999,2]
[360254508,1746665444026,-450.0,0.00019999,2]
[360254509,1746665444037,-450.0,0.00019999,2]
[360254510,1746665444047,-450.0,0.00019999,2]
[360254511,1746665444057,-450.0,0.00019999,2]
[360254512,1746665444067,-450.0,0.00019999,2]
[360254513,1746665444076,-450.0,0.00019999,2]
[360254514,1746665444086,-450.0,0.00019999,2]
[360254515,1746665444096,-404.02,0.00019999,2]
[360254516,1746665444106,-364.28,0.00019999,2]
[360254517,1746665444116,-533.0,0.0002,2]
[360254518,1746665444127,-3812.53743393,0.0002,2]
[360254519,1746665444138,-86444.19164618,0.0002,2]
[360254520,1746665444158,-1182.33465876,0.0002,2]
[360254521,1746665444169,-978.1854242,0.0002,2]
[360254522,1746665444180,-605.10209993,0.0002,2]
[360254523,1746665444283,-9606.7,0.00019989,2]
[360254524,1746665444294,-1527.9003,0.00019989,2]
[360254526,1746665445566,-800.4597,0.00019989,2]
[360254527,1746665445576,-450.0,0.00019989,2]
[360254528,1746665445585,-2633.5403,0.00019998,2]
[360254529,1746665445618,-4067.4416439,0.00019998,2]
[360254537,1746665504553,2000.0,0.000299,30]
[360254538,1746665507647,500.0,0.00029589,30]
[360254539,1746665507896,500.0,0.00029863,35]
[360254540,1746665593156,500.0,0.0003,30]
[360254541,1746665606513,1000.0,0.0001917,2]
[360254542,1746665704003,510.16,0.0003,30]
[360254543,1746665714277,510.1594,0.0003,30]
[360254544,1746665719513,510.16,0.0003,30]
[360254545,1746665742408,2522.3,0.00030137,120]
[360254547,1746665903980,500.0,0.0003,30]
[360254548,1746665933923,262.63,0.00030136,120]
[360254549,1746666251173,500.0,0.0003,30]
[360254550,1746666324536,3079.64098706,0.0003,30]
[360254551,1746666385644,210.46,0.00017,2]
[360254552,1746666385928,210.46,0.00019264,2]
[360254553,1746666550548,500.0,0.0003,30]
[360254588,1746666631671,-151.0,0.00019799,2]
[360254590,1746666631682,-200.0,0.00019799,2]
[360254592,1746666631692,-200.0,0.00019799,2]
[360254594,1746666631702,-960.3896816,0.00019799,2]
[360254595,1746666631712,-1200.0,0.00019872,2]
[360254597,1746666631722,-300.0,0.00019872,2]
[360254598,1746666631732,-500.0,0.00019873,2]
[360254599,1746666631743,-500.0,0.00019873,2]
[360254600,1746666631752,-500.0,0.00019873,2]
[360254601,1746666631762,-500.0,0.00019873,2]
[360254602,1746666631772,-500.0,0.00019873,2]
[360254603,1746666631782,-500.0,0.00019873,2]
[360254604,1746666631791,-500.0,0.00019873,2]
[360254605,1746666631801,-207.4,0.00019883,2]
[360254606,1746666631811,-203.43483096,0.00019889,2]
[360254607,1746666631820,-815.9582,0.0001989,2]
[360254608,1746666631830,-203.43483096,0.0001989,2]
[360254609,1746666631840,-203.43483096,0.00019891,2]
[360254610,1746666631850,-203.43483096,0.00019893,2]
[360254611,1746666631860,-203.43483096,0.00019894,2]
[360254612,1746666631870,-67900.16143651,0.00019895,2]
[360254613,1746666631880,-203.43483096,0.00019895,2]
[360254614,1746666631890,-203.43483096,0.00019896,2]
[360254615,1746666631900,-203.43483096,0.00019898,2]
[360254616,1746666631909,-150.99,0.00019898,2]
[360254617,1746666631921,-999.99,0.00019898,2]
[360254618,1746666631931,-1216.38544114,0.00019898,2]
[360254619,1746666631941,-1216.38544114,0.00019898,2]
[360254620,1746666631951,-1216.38544114,0.00019898,2]
[360254621,1746666631962,-1216.38544114,0.00019899,2]
[360254622,1746666631972,-203.43483096,0.00019899,2]
[360254623,1746666631982,-1216.38544114,0.00019899,2]
[360254624,1746666631992,-259.99402671,0.00019899,2]
[360254626,1746666632001,-1216.38544114,0.00019899,2]
[360254628,1746666632011,-1216.38544114,0.00019899,2]
[360254630,1746666632022,-1216.38544114,0.000199,2]
[360254632,1746666632031,-251.49609882,0.000199,2]
[360254634,1746666632041,-478.7408531,0.000199,2]
[360254636,1746666632052,-203.43483096,0.000199,2]
[360254638,1746666632062,-486.3165962,0.000199,2]
[360254640,1746666632071,-4813.98,0.00019926,2]
[360254642,1746666632081,-4017.0,0.00019926,2]
[360254644,1746666632091,-500.0,0.00019973,2]
[360254646,1746666632101,-206.84136735,0.00019977,2]
[360254648,1746666632113,-283.45,0.00019979,2]
[360254650,1746666632127,-456.48846506,0.00019985,2]
[360254652,1746666632136,-500.0,0.00019985,2]
[360254654,1746666632146,-500.0,0.00019985,2]
[360254656,1746666632155,-500.0,0.00019985,2]
[360254658,1746666632167,-156.62690725,0.00019985,2]
[360254660,1746666632177,-1140.6703599,0.00019986,2]
[360254662,1746666632187,-1427.3265955,0.00019986,2]
[360254664,1746666632199,-45646.7895707,0.00019986,2]
[360254666,1746666632210,-668.4535109,0.00019986,2]
[360254668,1746666632219,-2854.7191646,0.00019986,2]
[360254670,1746666632230,-3786.3643914,0.00019986,2]
[360254672,1746666632239,-367.29,0.00019987,2]
[360254674,1746666632249,-450.0,0.00019989,2]
[360254676,1746666632259,-450.0,0.00019989,2]
[360254678,1746666632269,-456.18371563,0.00019989,2]
[360254680,1746666632279,-450.0,0.00019989,2]
[360254683,1746666632289,-450.0,0.00019989,2]
[360254685,1746666632300,-450.0,0.00019989,2]
[360254687,1746666632309,-450.0,0.00019989,2]
[360254689,1746666632319,-490.0,0.00019989,2]
[360254691,1746666632329,-571.43509538,0.00019989,2]
[360254693,1746666632338,-490.0,0.00019989,2]
[360254694,1746666632348,-450.0,0.00019989,2]
[360254696,1746666632357,-488.67146372,0.00019989,2]
[360254698,1746666632366,-450.0,0.00019989,2]
[360254700,1746666632376,-450.0,0.00019989,2]
[360254702,1746666632385,-450.0,0.00019989,2]
[360254704,1746666632395,-450.0,0.00019989,2]
[360254706,1746666632405,-450.0,0.00019989,2]
[360254708,1746666632414,-450.0,0.00019989,2]
[360254710,1746666632425,-450.0,0.00019989,2]
[360254712,1746666632434,-450.0,0.00019989,2]
[360254715,1746666632445,-450.0,0.00019989,2]
[360254717,1746666632455,-470.0,0.00019989,2]
[360254719,1746666632465,-450.0,0.00019989,2]
[360254721,1746666632474,-470.0,0.00019989,2]
[360254722,1746666632485,-462.17263254,0.00019989,2]
[360254725,1746666632496,-450.0,0.00019989,2]
[360254727,1746666632506,-493.6328716,0.00019989,2]
[360254729,1746666632515,-450.0,0.00019989,2]
[360254731,1746666632525,-365.05165633,0.00019989,2]
[360254733,1746666632535,-450.0,0.00019989,2]
[360254735,1746666632545,-226.28948822,0.00019989,2]
[360254737,1746666632555,-162.55411999,0.00019989,2]
[360254739,1746666632565,-470.0,0.00019989,2]
[360254741,1746666632574,-450.0,0.00019989,2]
[360254743,1746666632584,-450.0,0.00019989,2]
[360254745,1746666632593,-450.0,0.00019989,2]
[360254747,1746666632603,-450.0,0.00019989,2]
[360254749,1746666632612,-450.0,0.00019989,2]
[360254751,1746666632623,-450.0,0.00019989,2]
[360254753,1746666632632,-450.0,0.00019989,2]
[360254755,1746666632642,-450.0,0.00019989,2]
[360254757,1746666632651,-563.25,0.00019989,2]
[360254759,1746666632661,-450.0,0.00019989,2]
[360254761,1746666632672,-192.88505064,0.00019989,2]
[360254763,1746666632682,-450.0,0.00019989,2]
[360254765,1746666632691,-450.0,0.00019989,2]
[360254767,1746666632701,-450.0,0.00019989,2]
[360254769,1746666632710,-450.0,0.00019989,2]
[360254771,1746666632719,-450.0,0.00019989,2]
[360254772,1746666632728,-450.0,0.00019989,2]
[360254773,1746666632738,-450.0,0.00019989,2]
[360254774,1746666632747,-470.0,0.00019989,2]
[360254775,1746666632756,-450.0,0.00019989,2]
[360254776,1746666632765,-450.0,0.00019989,2]
[360254777,1746666632775,-450.0,0.00019989,2]
[360254778,1746666632784,-450.0,0.00019989,2]
[360254779,1746666632793,-450.0,0.00019989,2]
[360254780,1746666632803,-450.0,0.00019989,2]
[360254781,1746666632813,-450.0,0.00019989,2]
[360254782,1746666632822,-450.0,0.00019989,2]
[360254783,1746666632831,-400.0,0.00019989,2]
[360254784,1746666632841,-450.0,0.00019989,2]
[360254785,1746666632850,-450.0,0.00019989,2]
[360254786,1746666632860,-450.0,0.00019989,2]
[360254787,1746666632869,-450.0,0.00019989,2]
[360254788,1746666632878,-450.0,0.00019989,2]
[360254789,1746666632888,-450.0,0.00019989,2]
[360254790,1746666632898,-470.0,0.00019989,2]
[360254791,1746666632907,-470.0,0.00019989,2]
[360254792,1746666632916,-477.85103968,0.00019989,2]
[360254793,1746666632926,-470.0,0.00019989,2]
[360254794,1746666632935,-450.0,0.00019989,2]
[360254795,1746666632945,-450.0,0.00019989,2]
[360254796,1746666632954,-484.09372656,0.00019989,2]
[360254797,1746666632964,-470.0,0.00019989,2]
[360254799,1746666632973,-470.0,0.00019989,2]
[360254801,1746666632982,-597.97273239,0.00019989,2]
[360254802,1746666632992,-475.75587976,0.00019989,2]
[360254803,1746666633002,-450.0,0.00019989,2]
[360254804,1746666633011,-450.0,0.00019989,2]
[360254805,1746666633021,-419.80341459,0.00019989,2]
[360254806,1746666633031,-450.0,0.00019989,2]
[360254807,1746666633041,-450.0,0.00019989,2]
[360254808,1746666633051,-450.0,0.00019989,2]
[360254809,1746666633060,-479.25129948,0.00019989,2]
[360254810,1746666633070,-473.94895209,0.00019989,2]
[360254811,1746666633079,-139.32779703,0.00019989,2]
[360254812,1746666633268,-310.67220297,0.00019989,2]
[360254813,1746666633279,-473.07297635,0.00019989,2]
[360254814,1746666633289,-476.48752221,0.00019989,2]
[360254815,1746666633299,-472.51090077,0.00019989,2]
[360254816,1746666633308,-450.0,0.00019989,2]
[360254817,1746666633317,-450.0,0.00019989,2]
[360254818,1746666633327,-230.82149543,0.00019989,2]
[360254819,1746666633337,-477.82222382,0.00019989,2]
[360254820,1746666633346,-450.0,0.00019989,2]
[360254821,1746666633355,-450.0,0.00019989,2]
[360254822,1746666633365,-483.72119793,0.00019989,2]
[360254823,1746666633375,-478.83469016,0.00019989,2]
[360254824,1746666633384,-450.0,0.00019989,2]
[360254825,1746666633394,-477.97055295,0.00019989,2]
[360254826,1746666633404,-450.0,0.00019989,2]
[360254827,1746666633414,-450.0,0.00019989,2]
[360254828,1746666633425,-450.0,0.00019989,2]
[360254829,1746666633435,-450.0,0.00019989,2]
[360254830,1746666633445,-470.0,0.00019989,2]
[360254831,1746666633455,-539.11235781,0.00019989,2]
[360254832,1746666633464,-450.0,0.00019989,2]
[360254833,1746666633474,-474.95877179,0.00019989,2]
[360254834,1746666633484,-482.34380656,0.00019989,2]
[360254835,1746666633494,-470.0,0.00019989,2]
[360254836,1746666633504,-450.0,0.00019989,2]
[360254837,1746666633514,-450.0,0.00019989,2]
[360254838,1746666633523,-450.0,0.00019989,2]
[360254839,1746666633533,-302.03000004,0.00019989,2]
[360254840,1746666633543,-450.0,0.00019996,2]
[360254841,1746666633554,-450.0,0.00019996,2]
[360254842,1746666633563,-450.0,0.00019996,2]
[360254843,1746666633573,-450.0,0.00019996,2]
[360254844,1746666633583,-450.0,0.00019996,2]
[360254845,1746666633593,-518.03310144,0.00019996,2]
[360254846,1746666633603,-450.0,0.00019996,2]
[360254847,1746666633612,-450.0,0.00019996,2]
[360254848,1746666633622,-450.0,0.00019996,2]
[360254849,1746666633631,-639.44,0.00019996,2]
[360254850,1746666633641,-450.0,0.00019996,2]
[360254851,1746666633650,-450.0,0.00019996,2]
[360254852,1746666633660,-450.0,0.00019996,2]
[360254853,1746666633669,-450.0,0.00019996,2]
[360254854,1746666633679,-450.0,0.00019996,2]
[360254856,1746666633689,-1580.512,0.00019997,2]
[360254857,1746666633699,-170.49641319,0.00019997,2]
[360254858,1746666633709,-450.0,0.00019997,2]
[360254859,1746666633719,-450.0,0.00019997,2]
[360254860,1746666633729,-470.0,0.00019997,2]
[360254861,1746666633739,-450.0,0.00019997,2]
[360254862,1746666633748,-476.96771207,0.00019997,2]
[360254863,1746666633759,-250.0,0.00019997,2]
[360254864,1746666633768,-450.0,0.00019997,2]
[360254865,1746666633778,-450.0,0.00019997,2]
[360254866,1746666633788,-450.0,0.00019997,2]
[360254867,1746666633798,-450.0,0.00019997,2]
[360254868,1746666633807,-450.0,0.00019997,2]
[360254869,1746666633816,-450.0,0.00019997,2]
[360254870,1746666633826,-450.0,0.00019997,2]
[360254871,1746666633836,-450.0,0.00019997,2]
[360254872,1746666633845,-450.0,0.00019997,2]
[360254873,1746666633855,-450.0,0.00019997,2]
[360254874,1746666633865,-450.0,0.00019997,2]
[360254875,1746666633875,-450.0,0.00019997,2]
[360254876,1746666633885,-450.0,0.00019997,2]
[360254877,1746666633895,-492.51,0.00019997,2]
[360254878,1746666633905,-450.0,0.00019997,2]
[360254879,1746666633916,-457.94,0.00019997,2]
[360254880,1746666633927,-450.0,0.00019997,2]
[360254881,1746666633937,-450.0,0.00019997,2]
[360254882,1746666633947,-450.0,0.00019997,2]
[360254883,1746666633957,-450.0,0.00019997,2]
[360254884,1746666633966,-450.0,0.00019997,2]
[360254885,1746666633976,-450.0,0.00019997,2]
[360254886,1746666633985,-540.58,0.00019997,2]
[360254887,1746666633995,-450.0,0.00019997,2]
[360254888,1746666634005,-450.0,0.00019997,2]
[360254889,1746666634015,-450.0,0.00019997,2]
[360254890,1746666634024,-450.0,0.00019997,2]
[360254891,1746666634034,-450.0,0.00019997,2]
[360254892,1746666634044,-450.0,0.00019997,2]
[360254893,1746666634053,-450.0,0.00019997,2]
[360254894,1746666634063,-450.0,0.00019997,2]
[360254895,1746666634072,-450.0,0.00019997,2]
[360254896,1746666634082,-450.0,0.00019997,2]
[360254897,1746666634092,-480.18572962,0.00019997,2]
[360254898,1746666634101,-450.0,0.00019997,2]
[360254899,1746666634113,-450.0,0.00019997,2]
[360254900,1746666634125,-450.0,0.00019997,2]
[360254901,1746666634154,-450.0,0.00019997,2]
[360254902,1746666634164,-500.0,0.00019997,2]
[360254903,1746666634176,-553.11519015,0.00019997,2]
[360254904,1746666634186,-450.0,0.00019997,2]
[360254905,1746666634197,-450.0,0.00019997,2]
[360254906,1746666634207,-267.76179688,0.00019997,2]
[360254907,1746666634217,-450.0,0.00019997,2]
[360254908,1746666634227,-450.0,0.00019997,2]
[360254909,1746666634237,-450.0,0.00019997,2]
[360254910,1746666634247,-450.0,0.00019997,2]
[360254911,1746666634257,-558.92,0.00019997,2]
[360254912,1746666634267,-431.51635601,0.00019997,2]
[360254913,1746666634276,-450.0,0.00019997,2]
[360254914,1746666634286,-450.0,0.00019997,2]
[360254915,1746666634296,-450.0,0.00019997,2]
[360254916,1746666634306,-450.0,0.00019997,2]
[360254917,1746666634316,-450.0,0.00019997,2]
[360254918,1746666634327,-450.0,0.00019997,2]
[360254919,1746666634337,-450.0,0.00019997,2]
[360254920,1746666634348,-450.0,0.00019997,2]
[360254921,1746666634358,-450.0,0.00019997,2]
[360254922,1746666634368,-450.0,0.00019997,2]
[360254923,1746666634378,-500.0,0.00019997,2]
[360254924,1746666634389,-450.0,0.00019997,2]
[360254925,1746666634399,-450.0,0.00019997,2]
[360254926,1746666634409,-450.0,0.00019997,2]
[360254927,1746666634419,-450.0,0.00019997,2]
[360254928,1746666634429,-450.0,0.00019997,2]
[360254929,1746666634438,-450.0,0.00019997,2]
[360254930,1746666634448,-450.0,0.00019997,2]
[360254931,1746666634458,-450.0,0.00019997,2]
[360254932,1746666634467,-450.0,0.00019997,2]
[360254933,1746666634477,-450.0,0.00019997,2]
[360254934,1746666634486,-450.0,0.00019997,2]
[360254935,1746666634496,-450.0,0.00019997,2]
[360254936,1746666634506,-450.0,0.00019997,2]
[360254937,1746666634516,-450.0,0.00019997,2]
[360254938,1746666634526,-619.68,0.00019997,2]
[360254939,1746666634537,-532.85,0.00019997,2]
[360254940,1746666634546,-450.0,0.00019997,2]
[360254941,1746666634557,-490.0,0.00019997,2]
[360254942,1746666634567,-450.0,0.00019997,2]
[360254943,1746666634577,-1472.23,0.00019997,2]
[360254944,1746666634587,-450.0,0.00019997,2]
[360254945,1746666634598,-450.0,0.00019997,2]
[360254946,1746666634608,-450.0,0.00019997,2]
[360254947,1746666634618,-450.0,0.00019997,2]
[360254948,1746666634628,-558.63289718,0.00019997,2]
[360254949,1746666634638,-450.0,0.00019997,2]
[360254950,1746666634648,-530.07,0.00019997,2]
[360254951,1746666634657,-450.0,0.00019997,2]
[360254952,1746666634668,-186.65,0.00019997,2]
[360254953,1746666634679,-450.0,0.00019997,2]
[360254954,1746666634689,-450.0,0.00019997,2]
[360254955,1746666634698,-450.0,0.00019997,2]
[360254956,1746666634708,-450.0,0.00019997,2]
[360254957,1746666634718,-450.0,0.00019997,2]
[360254958,1746666634729,-450.0,0.00019997,2]
[360254959,1746666634739,-450.0,0.00019997,2]
[360254960,1746666634749,-450.0,0.00019997,2]
[360254961,1746666634759,-450.0,0.00019997,2]
[360254962,1746666634769,-2975.25,0.00019997,2]
[360254963,1746666634779,-271.8,0.00019997,2]
[360254964,1746666634790,-450.0,0.00019997,2]
[360254965,1746666634800,-451.49,0.00019997,2]
[360254966,1746666634810,-450.0,0.00019997,2]
[360254967,1746666634820,-399.05,0.00019997,2]
[360254968,1746666634829,-450.0,0.00019997,2]
[360254969,1746666634840,-11158.56,0.00019997,2]
[360254970,1746666634850,-342.37221168,0.00019997,2]
[360254971,1746666634860,-450.0,0.00019997,2]
[360254972,1746666634870,-450.0,0.00019997,2]
[360254973,1746666634880,-450.0,0.00019997,2]
[360254974,1746666634890,-450.0,0.00019997,2]
[360254975,1746666634899,-450.0,0.00019997,2]
[360254976,1746666634909,-450.0,0.00019997,2]
[360254977,1746666634918,-450.0,0.00019997,2]
[360254978,1746666634927,-450.0,0.00019997,2]
[360254979,1746666634937,-450.0,0.00019997,2]
[360254980,1746666634946,-450.0,0.00019997,2]
[360254981,1746666634956,-450.0,0.00019998,2]
[360254982,1746666634966,-576.16,0.00019998,2]
[360254983,1746666634976,-450.0,0.00019998,2]
[360254984,1746666634985,-490.96,0.00019998,2]
[360254985,1746666634995,-157.53,0.00019998,2]
[360254986,1746666635004,-470.0,0.00019998,2]
[360254987,1746666635015,-450.0,0.00019998,2]
[360254988,1746666635025,-195.82,0.00019998,2]
[360254989,1746666635034,-450.0,0.00019998,2]
[360254990,1746666635044,-450.0,0.00019998,2]
[360254991,1746666635236,-450.0,0.00019998,2]
[360254992,1746666635248,-450.0,0.00019998,2]
[360254993,1746666635258,-450.0,0.00019998,2]
[360254994,1746666635267,-204.82441537,0.00019998,2]
[360254995,1746666635277,-500.0,0.00019998,2]
[360254996,1746666635287,-224.64181242,0.00019998,2]
[360254997,1746666635297,-500.0,0.00019998,2]
[360254998,1746666635307,-500.0,0.00019998,2]
[360254999,1746666635316,-564.66381034,0.00019998,2]
[360255000,1746666635326,-500.0,0.00019998,2]
[360255001,1746666635336,-500.0,0.00019998,2]
[360255002,1746666635346,-450.0,0.00019998,2]
[360255003,1746666635355,-450.0,0.00019998,2]
[360255004,1746666635364,-450.0,0.00019998,2]
[360255005,1746666635373,-450.0,0.00019998,2]
[360255006,1746666635382,-450.0,0.00019998,2]
[360255007,1746666635393,-450.0,0.00019998,2]
[360255008,1746666635402,-450.0,0.00019998,2]
[360255009,1746666635414,-450.0,0.00019998,2]
[360255010,1746666635425,-450.0,0.00019998,2]
[360255011,1746666635434,-450.0,0.00019998,2]
[360255012,1746666635443,-450.0,0.00019998,2]
[360255013,1746666635466,-450.0,0.00019998,2]
[360255014,1746666635476,-450.0,0.00019998,2]
[360255015,1746666635488,-450.0,0.00019998,2]
[360255016,1746666635499,-450.0,0.00019998,2]
[360255017,1746666635510,-517.66126788,0.00019998,2]
[360255018,1746666635520,-450.0,0.00019998,2]
[360255019,1746666635530,-452.72,0.00019998,2]
[360255020,1746666635539,-250.1,0.00019998,2]
[360255021,1746666635550,-251.73,0.00019998,2]
[360255022,1746666635559,-463.19,0.00019998,2]
[360255023,1746666635570,-172.02,0.00019998,2]
[360255024,1746666635580,-544.28,0.00019998,2]
[360255025,1746666635590,-450.0,0.00019998,2]
[360255026,1746666635601,-450.0,0.00019998,2]
[360255027,1746666635611,-450.0,0.00019998,2]
[360255028,1746666635622,-450.0,0.00019998,2]
[360255029,1746666635633,-450.0,0.00019998,2]